lending/lending_fUSD_20240411
["ID","MTS","AMOUNT","RATE_DAILY","PERIOD"]
[322190695,1712868642396,-500.0,0.00027397,2]
[322190696,1712868642406,-500.0,0.00027397,2]
[322190697,1712868642416,-537.98,0.00027397,2]
[322190698,1712868642425,-1234.56,0.00027397,2]
[322190699,1712868642434,-1758.28,0.00027397,2]
[322190700,1712868642443,-1277.64,0.00027397,2]
[322190701,1712868642452,-500.0,0.00027397,2]
[322190702,1712868642462,-500.0,0.00027397,2]
[322190703,1712868642472,-1567.05,0.00027397,2]
[322190704,1712868642482,-513.43,0.00027397,2]
[322190705,1712868642491,-500.0,0.00027397,2]
[322190706,1712868642502,-500.0,0.00027397,2]
[322190707,1712868642511,-500.0,0.00027397,2]
[322190708,1712868642522,-500.0,0.00027397,2]
[322190709,1712868642530,-1376.95,0.00027397,2]
[322190710,1712868642540,-826.4,0.00027397,2]
[322190711,1712868642548,-667.55,0.00027397,2]
[322190712,1712868642557,-500.0,0.00027397,2]
[322190713,1712868642568,-500.0,0.00027397,2]
[322190714,1712868642577,-500.0,0.00027397,2]
[322190715,1712868642588,-500.0,0.00027397,2]
[322190716,1712868642599,-500.0,0.00027397,2]
[322190717,1712868642608,-500.0,0.00027397,2]
[322190718,1712868642618,-500.0,0.00027397,2]
[322190719,1712868642628,-500.0,0.00027397,2]
[322190720,1712868642638,-500.0,0.00027397,2]
[322190721,1712868642647,-500.0,0.00027397,2]
[322190722,1712868642656,-500.0,0.00027397,2]
[322190723,1712868642665,-1296.66,0.00027397,2]
[322190724,1712868642675,-500.0,0.00027397,2]
[322190725,1712868642684,-500.0,0.00027397,2]
[322190727,1712868642694,-528.21,0.00027397,2]
[322190728,1712868642703,-500.0,0.00027397,2]
[322190729,1712868642713,-500.0,0.00027397,2]
[322190730,1712868642724,-558.48458388,0.00027397,2]
[322190731,1712868642734,-500.0,0.00027397,2]
[322190732,1712868642744,-894.56,0.00027397,2]
[322190733,1712868642753,-500.0,0.00027397,2]
[322190734,1712868642763,-613.07,0.00027397,2]
[322190736,1712868642772,-500.0,0.00027397,2]
[322190737,1712868642781,-582.5,0.00027397,2]
[322190738,1712868642790,-500.0,0.00027397,2]
[322190739,1712868642801,-500.0,0.00027397,2]
[322190740,1712868642810,-3805.95,0.00027397,2]
[322190741,1712868642820,-500.0,0.00027397,2]
[322190742,1712868642829,-834.1,0.00027397,2]
[322190743,1712868642838,-500.0,0.00027397,2]
[322190744,1712868642847,-742.63,0.00027397,2]
[322190745,1712868642855,-500.0,0.00027397,2]
[322190746,1712868642866,-1435.94,0.00027397,2]
[322190747,1712868642877,-500.0,0.00027397,2]
[322190748,1712868642886,-635.85,0.00027397,2]
[322190749,1712868642897,-737.52,0.00027397,2]
[322190750,1712868642906,-500.0,0.00027397,2]
[322190751,1712868642915,-500.0,0.00027397,2]
[322190752,1712868642925,-500.0,0.00027397,2]
[322190753,1712868642936,-3189.42,0.00027397,2]
[322190754,1712868642945,-2840.72,0.00027397,2]
[322190755,1712868642956,-500.0,0.00027397,2]
[322190756,1712868642965,-3321.62,0.00027397,2]
[322190757,1712868642976,-804.76,0.00027397,2]
[322190758,1712868642990,-500.0,0.00027397,2]
[322190759,1712868642999,-500.0,0.00027397,2]
[322190760,1712868643008,-1198.98,0.00027397,2]
[322190761,1712868643018,-500.0,0.00027397,2]
[322190762,1712868643029,-500.0,0.00027397,2]
[322190763,1712868643038,-500.0,0.00027397,2]
[322190764,1712868643048,-500.0,0.00027397,2]
[322190765,1712868643058,-500.0,0.00027397,2]
[322190766,1712868643070,-6572.7,0.00027397,2]
[322190767,1712868643079,-2593.48,0.00027397,2]
[322190768,1712868643089,-500.0,0.00027397,2]
[322190769,1712868643099,-500.0,0.00027397,2]
[322190770,1712868643109,-500.0,0.00027397,2]
[322190771,1712868643118,-500.0,0.00027397,2]
[322190772,1712868643127,-500.0,0.00027397,2]
[322190773,1712868643137,-1295.09,0.00027397,2]
[322190774,1712868643149,-500.0,0.00027397,2]
[322190775,1712868643159,-500.0,0.00027397,2]
[322190776,1712868643169,-500.0,0.00027397,2]
[322190777,1712868643179,-500.0,0.00027397,2]
[322190778,1712868643190,-833.46,0.00027397,2]
[322190779,1712868643198,-500.0,0.00027397,2]
[322190780,1712868643208,-500.0,0.00027397,2]
[322190781,1712868643218,-500.0,0.00027397,2]
[322190782,1712868643228,-500.0,0.00027397,2]
[322190783,1712868643239,-500.0,0.00027397,2]
[322190784,1712868643249,-1879.89,0.00027397,2]
[322190785,1712868643259,-4513.33,0.00027397,2]
[322190786,1712868643269,-1061.55,0.00027397,2]
[322190787,1712868643281,-500.0,0.00027397,2]
[322190788,1712868643292,-4681.53,0.00027397,2]
[322190789,1712868643302,-500.0,0.00027397,2]
[322190790,1712868643313,-500.0,0.00027397,2]
[322190791,1712868643324,-500.0,0.00027397,2]
[322190792,1712868643334,-177.6593878,0.00027397,2]
[322190793,1712868643344,-500.0,0.00027397,2]
[322190794,1712868643354,-500.0,0.00027397,2]
[322190795,1712868643363,-500.0,0.00027397,2]
[322190796,1712868643373,-500.0,0.00027397,2]
[322190797,1712868643383,-914.4,0.00027397,2]
[322190798,1712868643393,-500.0,0.00027397,2]
[322190799,1712868643403,-500.0,0.00027397,2]
[322190800,1712868643413,-1016.84,0.00027397,2]
[322190801,1712868643423,-629.67,0.00027397,2]
[322190802,1712868643433,-500.0,0.00027397,2]
[322190803,1712868643442,-500.0,0.00027397,2]
[322190804,1712868643452,-500.0,0.00027397,2]
[322190805,1712868643462,-500.0,0.00027397,2]
[322190806,1712868643472,-500.0,0.00027397,2]
[322190807,1712868643481,-500.0,0.00027397,2]
[322190808,1712868643491,-3154.37,0.00027397,2]
[322190809,1712868643500,-500.0,0.00027397,2]
[322190810,1712868643510,-4541.59,0.00027397,2]
[322190811,1712868643520,-500.0,0.00027397,2]
[322190812,1712868643530,-2017.64,0.00027397,2]
[322190813,1712868643540,-500.0,0.00027397,2]
[322190814,1712868643551,-2435.04,0.00027397,2]
[322190815,1712868643562,-500.0,0.00027397,2]
[322190816,1712868643575,-500.0,0.00027397,2]
[322190817,1712868643586,-584.34,0.00027397,2]
[322190818,1712868643596,-500.0,0.00027397,2]
[322190819,1712868643605,-500.0,0.00027397,2]
[322190820,1712868643615,-500.0,0.00027397,2]
[322190821,1712868643626,-500.0,0.00027397,2]
[322190822,1712868643635,-1092.86,0.00027397,2]
[322190823,1712868643644,-500.0,0.00027397,2]
[322190824,1712868643656,-500.0,0.00027397,2]
[322190825,1712868643666,-1233.67,0.00027397,2]
[322190826,1712868643675,-500.0,0.00027397,2]
[322190827,1712868643684,-7986.4,0.00027397,2]
[322190828,1712868643693,-500.0,0.00027397,2]
[322190829,1712868643702,-2144.15,0.00027397,2]
[322190830,1712868643711,-1378.46,0.00027397,2]
[322190831,1712868643721,-517.9,0.00027397,2]
[322190832,1712868643731,-583.08,0.00027397,2]
[322190833,1712868643740,-500.0,0.00027397,2]
[322190834,1712868643750,-1070.25,0.00027397,2]
[322190835,1712868643759,-611.97339588,0.00027397,2]
[322190836,1712868643768,-500.0,0.00027397,2]
[322190837,1712868643777,-500.0,0.00027397,2]
[322190838,1712868643786,-2378.67,0.00027397,2]
[322190839,1712868643796,-635.18175874,0.00027397,2]
[322190840,1712868643805,-1118.29,0.00027397,2]
[322190841,1712868643814,-2981.05,0.00027397,2]
[322190842,1712868643826,-500.0,0.00027397,2]
[322190843,1712868643835,-1612.96,0.00027397,2]
[322190844,1712868643845,-4532.83,0.00027397,2]
[322190845,1712868643854,-500.0,0.00027397,2]
[322190846,1712868643864,-500.0,0.00027397,2]
[322190847,1712868643874,-1881.41,0.00027397,2]
[322190848,1712868643884,-500.0,0.00027397,2]
[322190849,1712868643894,-966.84,0.00027397,2]
[322190850,1712868643903,-500.0,0.00027397,2]
[322190851,1712868643913,-500.0,0.00027397,2]
[322190852,1712868643923,-500.0,0.00027397,2]
[322190853,1712868643932,-500.0,0.00027397,2]
[322190854,1712868643942,-500.0,0.00027397,2]
[322190855,1712868643951,-2424.43,0.00027397,2]
[322190856,1712868643960,-500.0,0.00027397,2]
[322190857,1712868643969,-500.0,0.00027397,2]
[322190858,1712868643980,-500.0,0.00027397,2]
[322190859,1712868643992,-1638.58,0.00027397,2]
[322190860,1712868644002,-500.0,0.00027397,2]
[322190861,1712868644013,-9636.4,0.00027397,2]
[322190862,1712868644023,-1115.04,0.00027397,2]
[322190863,1712868644032,-500.0,0.00027397,2]
[322190864,1712868644042,-500.0,0.00027397,2]
[322190865,1712868644052,-1353.11,0.00027397,2]
[322190866,1712868644062,-270.21740544,0.00027397,2]
[322190867,1712868644074,-1255.05,0.00027397,2]
[322190868,1712868644083,-791.28,0.00027397,2]
[322190869,1712868644095,-500.0,0.00027397,2]
[322190870,1712868644104,-616.49,0.00027397,2]
[322190871,1712868644113,-6428.93,0.00027397,2]
[322190872,1712868644123,-4664.74,0.00027397,2]
[322190873,1712868644133,-500.97,0.00027397,2]
[322190874,1712868644142,-3180.56,0.00027397,2]
[322190875,1712868644152,-38012.7,0.00027397,2]
[322190876,1712868644161,-500.0,0.00027397,2]
[322190877,1712868644171,-875.03,0.00027397,2]
[322190878,1712868644180,-500.0,0.00027397,2]
[322190879,1712868644190,-500.0,0.00027397,2]
[322190880,1712868644199,-337.17279691,0.00027397,2]
[322190881,1712868644208,-1260.67,0.00027397,2]
[322190882,1712868644218,-500.0,0.00027397,2]
[322190883,1712868644227,-500.0,0.00027397,2]
[322190884,1712868644237,-500.0,0.00027397,2]
[322190885,1712868644246,-2087.38,0.00027397,2]
[322190886,1712868644255,-500.0,0.00027397,2]
[322190887,1712868644264,-500.0,0.00027397,2]
[322190888,1712868644273,-500.0,0.00027397,2]
[322190889,1712868644282,-246.16,0.00027397,2]
[322190890,1712868644291,-2938.19,0.00027397,2]
[322190891,1712868644300,-2041.07,0.00027397,2]
[322190892,1712868644309,-1959.61,0.00027397,2]
[322190893,1712868644319,-781.81,0.00027397,2]
[322190894,1712868644329,-4941.95,0.00027397,2]
[322190895,1712868644338,-937.01,0.00027397,2]
[322190896,1712868644347,-1889.04,0.00027397,2]
[322190897,1712868644356,-500.0,0.00027397,2]
[322190898,1712868644366,-794.52,0.00027397,2]
[322190899,1712868644375,-1709.94,0.00027397,2]
[322190900,1712868644385,-500.0,0.00027397,2]
[322190901,1712868644394,-500.0,0.00027397,2]
[322190902,1712868644403,-1327.23,0.00027397,2]
[322190903,1712868644412,-2212.91,0.00027397,2]
[322190904,1712868644421,-500.0,0.00027397,2]
[322190905,1712868644430,-500.0,0.00027397,2]
[322190906,1712868644439,-500.0,0.00027397,2]
[322190907,1712868644449,-5338.4,0.00027397,2]
[322190908,1712868644458,-500.0,0.00027397,2]
[322190909,1712868644467,-759.31,0.00027397,2]
[322190910,1712868644476,-1413.22,0.00027397,2]
[322190911,1712868644485,-708.08,0.00027397,2]
[322190912,1712868644494,-19653.59,0.00027397,2]
[322190913,1712868644504,-500.0,0.00027397,2]
[322190914,1712868644513,-547.58,0.00027397,2]
[322190915,1712868644523,-500.0,0.00027397,2]
[322190916,1712868644532,-6813.04,0.00027397,2]
[322190917,1712868644541,-540.66,0.00027397,2]
[322190918,1712868644550,-539.7756772,0.00027397,2]
[322190919,1712868644560,-500.0,0.00027397,2]
[322190920,1712868644569,-500.0,0.00027397,2]
[322190921,1712868644579,-591.29,0.00027397,2]
[322190922,1712868644588,-765.66,0.00027397,2]
[322190923,1712868644597,-500.0,0.00027397,2]
[322190924,1712868644606,-2696.69,0.00027397,2]
[322190925,1712868644615,-500.0,0.00027397,2]
[322190926,1712868644624,-500.0,0.00027397,2]
[322190927,1712868644634,-2358.54,0.00027397,2]
[322190928,1712868644643,-1509.17,0.00027397,2]
[322190929,1712868644652,-1340.13,0.00027397,2]
[322190930,1712868644661,-254.90422389,0.00027397,2]
[322190931,1712868644670,-5039.23,0.00027397,2]
[322190932,1712868644679,-500.0,0.00027397,2]
[322190933,1712868644688,-500.0,0.00027397,2]
[322190934,1712868644697,-935.79,0.00027397,2]
[322190935,1712868644706,-656.94,0.00027397,2]
[322190936,1712868644715,-737.18,0.00027397,2]
[322190937,1712868644724,-2410.8,0.00027397,2]
[322190938,1712868644733,-500.0,0.00027397,2]
[322190939,1712868644742,-500.0,0.00027397,2]
[322190940,1712868644751,-500.0,0.00027397,2]
[322190941,1712868644761,-500.0,0.00027397,2]
[322190942,1712868644771,-2440.56,0.00027397,2]
[322190943,1712868644780,-2447.94,0.00027397,2]
[322190944,1712868644790,-1368.67,0.00027397,2]
[322190945,1712868644799,-500.0,0.00027397,2]
[322190946,1712868644808,-3938.02,0.00027397,2]
[322190947,1712868644820,-2290.07,0.00027397,2]
[322190948,1712868644830,-2074.55,0.00027397,2]
[322190949,1712868644841,-500.0,0.00027397,2]
[322190950,1712868644850,-538.9,0.00027397,2]
[322190951,1712868644860,-500.0,0.00027397,2]
[322190952,1712868644870,-500.0,0.00027397,2]
[322190953,1712868644879,-500.0,0.00027397,2]
[322190954,1712868644888,-1161.29,0.00027397,2]
[322190955,1712868644897,-500.0,0.00027397,2]
[322190956,1712868644907,-1309.64,0.00027397,2]
[322190957,1712868644917,-1602.4,0.00027397,2]
[322190958,1712868644926,-500.0,0.00027397,2]
[322190959,1712868644936,-500.0,0.00027397,2]
[322190960,1712868644945,-500.0,0.00027397,2]
[322190961,1712868644954,-500.0,0.00027397,2]
[322190962,1712868644964,-4026.23,0.00027397,2]
[322190963,1712868644974,-508.66,0.00027397,2]
[322190964,1712868644986,-576.13513664,0.00027397,2]
[322190965,1712868644995,-500.0,0.00027397,2]
[322190966,1712868645005,-500.0,0.00027397,2]
[322190967,1712868645015,-2697.69,0.00027397,2]
[322190968,1712868645025,-2086.19,0.00027397,2]
[322190969,1712868645034,-500.0,0.00027397,2]
[322190970,1712868645044,-500.0,0.00027397,2]
[322190971,1712868645054,-500.0,0.00027397,2]
[322190972,1712868645260,-500.0,0.00027397,2]
[322190973,1712868645269,-500.0,0.00027397,2]
[322190974,1712868645278,-4891.75,0.00027397,2]
[322190975,1712868645288,-500.0,0.00027397,2]
[322190976,1712868645297,-300.0,0.00027397,2]
[322190977,1712868645307,-500.0,0.00027397,2]
[322190978,1712868645317,-1827.24,0.00027397,2]
[322190979,1712868645328,-500.0,0.00027397,2]
[322190980,1712868645337,-1078.08,0.00027397,2]
[322190981,1712868645347,-3168.97,0.00027397,2]
[322190982,1712868645356,-500.0,0.00027397,2]
[322190983,1712868645365,-1580.68,0.00027397,2]
[322190984,1712868645375,-2955.23,0.00027397,2]
[322190985,1712868645384,-1146.05,0.00027397,2]
[322190986,1712868645393,-500.0,0.00027397,2]
[322190987,1712868645402,-950.7,0.00027397,2]
[322190988,1712868645411,-330.73899374,0.00027397,2]
[322190989,1712868645421,-636.41,0.00027397,2]
[322190990,1712868645430,-500.0,0.00027397,2]
[322190991,1712868645439,-2114.95,0.00027397,2]
[322190992,1712868645448,-624.18,0.00027397,2]
[322190993,1712868645458,-500.0,0.00027397,2]
[322190994,1712868645467,-500.0,0.00027397,2]
[322190995,1712868645476,-500.0,0.00027397,2]
[322190996,1712868645485,-500.0,0.00027397,2]
[322190997,1712868645494,-3826.68,0.00027397,2]
[322190998,1712868645503,-500.0,0.00027397,2]
[322190999,1712868645513,-678.68,0.00027397,2]
[322191000,1712868645522,-2857.98,0.00027397,2]
[322191001,1712868645531,-2749.84,0.00027397,2]
[322191002,1712868645540,-500.0,0.00027397,2]
[322191003,1712868645550,-16718.97,0.00027397,2]
[322191004,1712868645558,-226.27105714,0.00027397,2]
[322191005,1712868645568,-500.0,0.00027397,2]
[322191006,1712868645577,-500.0,0.00027397,2]
[322191007,1712868645586,-500.0,0.00027397,2]
[322191008,1712868645595,-2893.53,0.00027397,2]
[322191009,1712868645604,-1752.77,0.00027397,2]
[322191010,1712868645613,-609.04923461,0.00027397,2]
[322191011,1712868645622,-500.0,0.00027397,2]
[322191012,1712868645632,-804.87,0.00027397,2]
[322191013,1712868645641,-402.86904629,0.00027397,2]
[322191014,1712868645650,-500.0,0.00027397,2]
[322191015,1712868645660,-500.0,0.00027397,2]
[322191016,1712868645669,-1849.01,0.00027397,2]
[322191017,1712868645678,-48182.79,0.00027397,2]
[322191019,1712868645687,-3833.94,0.00027397,2]
[322191021,1712868645697,-500.0,0.00027397,2]
[322191023,1712868645706,-500.0,0.00027397,2]
[322191024,1712868645715,-1197.87,0.00027397,2]
[322191025,1712868645724,-2459.32,0.00027397,2]
[322191026,1712868645733,-500.0,0.00027397,2]
[322191027,1712868645742,-500.0,0.00027397,2]
[322191028,1712868645751,-649.73835669,0.00027397,2]
[322191029,1712868645762,-1001.35,0.00027397,2]
[322191030,1712868645771,-500.0,0.00027397,2]
[322191031,1712868645780,-500.0,0.00027397,2]
[322191033,1712868645790,-500.0,0.00027397,2]
[322191035,1712868645799,-500.0,0.00027397,2]
[322191037,1712868645808,-6575.62,0.00027397,2]
[322191038,1712868645817,-500.0,0.00027397,2]
[322191039,1712868645828,-500.0,0.00027397,2]
[322191040,1712868645837,-6899.23,0.00027397,2]
[322191041,1712868645847,-500.0,0.00027397,2]
[322191042,1712868645857,-7601.76,0.00027397,2]
[322191043,1712868645866,-14527.24,0.00027397,2]
[322191044,1712868645875,-1239.76,0.00027397,2]
[322191045,1712868645885,-500.0,0.00027397,2]
[322191046,1712868645894,-596.74,0.00027397,2]
[322191047,1712868645903,-500.0,0.00027397,2]
[322191048,1712868645912,-873.99,0.00027397,2]
[322191049,1712868645922,-4096.49,0.00027397,2]
[322191050,1712868645931,-500.0,0.00027397,2]
[322191051,1712868645942,-500.0,0.00027397,2]
[322191052,1712868645951,-501.44192657,0.00027397,2]
[322191053,1712868645960,-721.54,0.00027397,2]
[322191054,1712868645970,-4553.75,0.00027397,2]
[322191055,1712868645980,-500.0,0.00027397,2]
[322191056,1712868645991,-500.0,0.00027397,2]
[322191057,1712868646001,-500.0,0.00027397,2]
[322191058,1712868646010,-3035.95,0.00027397,2]
[322191059,1712868646020,-500.0,0.00027397,2]
[322191060,1712868646030,-500.0,0.00027397,2]
[322191061,1712868646039,-500.0,0.00027397,2]
[322191062,1712868646048,-3336.31,0.00027397,2]
[322191063,1712868646059,-1821.36,0.00027397,2]
[322191064,1712868646070,-500.0,0.00027397,2]
[322191065,1712868646079,-500.0,0.00027397,2]
[322191066,1712868646088,-500.0,0.00027397,2]
[322191067,1712868646098,-500.0,0.00027397,2]
[322191068,1712868646108,-500.0,0.00027397,2]
[322191069,1712868646117,-500.0,0.00027397,2]
[322191070,1712868646127,-6530.0,0.00027397,2]
[322191071,1712868646136,-27064.37,0.00027397,2]
[322191072,1712868646147,-761.52,0.00027397,2]
[322191073,1712868646156,-1668.38,0.00027397,2]
[322191074,1712868646166,-500.0,0.00027397,2]
[322191075,1712868646175,-500.0,0.00027397,2]
[322191076,1712868646185,-500.0,0.00027397,2]
[322191077,1712868646195,-722.07,0.00027397,2]
[322191078,1712868646205,-710.15,0.00027397,2]
[322191079,1712868646215,-620.73182049,0.00027397,2]
[322191080,1712868646225,-500.0,0.00027397,2]
[322191081,1712868646234,-4394.11,0.00027397,2]
[322191082,1712868646244,-7005.29,0.00027397,2]
[322191083,1712868646254,-2800.55,0.00027397,2]
[322191084,1712868646263,-2569.93,0.00027397,2]
[322191085,1712868646272,-500.0,0.00027397,2]
[322191086,1712868646281,-500.0,0.00027397,2]
[322191087,1712868646291,-3739.1,0.00027397,2]
[322191088,1712868646300,-500.0,0.00027397,2]
[322191089,1712868646310,-2180.04,0.00027397,2]
[322191090,1712868646320,-500.0,0.00027397,2]
[322191091,1712868646330,-500.0,0.00027397,2]
[322191092,1712868646339,-1253.2,0.00027397,2]
[322191093,1712868646349,-1348.42,0.00027397,2]
[322191094,1712868646359,-540.92845011,0.00027397,2]
[322191095,1712868646368,-549.27,0.00027397,2]
[322191096,1712868646378,-500.0,0.00027397,2]
[322191097,1712868646387,-1015.36,0.00027397,2]
[322191098,1712868646396,-6521.51,0.00027397,2]
[322191099,1712868646405,-500.0,0.00027397,2]
[322191100,1712868646415,-500.0,0.00027397,2]
[322191101,1712868646424,-5468.42,0.00027397,2]
[322191102,1712868646434,-7126.28,0.00027397,2]
[322191103,1712868646443,-500.0,0.00027397,2]
[322191104,1712868646453,-500.0,0.00027397,2]
[322191105,1712868646462,-500.0,0.00027397,2]
[322191106,1712868646471,-2561.61,0.00027397,2]
[322191107,1712868646481,-500.0,0.00027397,2]
[322191108,1712868646490,-1817.56,0.00027397,2]
[322191109,1712868646499,-949.12,0.00027397,2]
[322191110,1712868646509,-1119.64,0.00027397,2]
[322191111,1712868646520,-500.0,0.00027397,2]
[322191112,1712868646529,-1697.82,0.00027397,2]
[322191113,1712868646539,-500.0,0.00027397,2]
[322191114,1712868646549,-500.0,0.00027397,2]
[322191115,1712868646558,-2302.79,0.00027397,2]
[322191116,1712868646568,-1574.5,0.00027397,2]
[322191117,1712868646577,-5471.51,0.00027397,2]
[322191118,1712868646586,-1597.69,0.00027397,2]
[322191119,1712868646595,-204.59921742,0.00027397,2]
[322191120,1712868646605,-2532.95,0.00027397,2]
[322191121,1712868646614,-670.99,0.00027397,2]
[322191122,1712868646623,-500.0,0.00027397,2]
[322191123,1712868646633,-500.0,0.00027397,2]
[322191124,1712868646642,-3224.21,0.00027397,2]
[322191125,1712868646651,-500.0,0.00027397,2]
[322191126,1712868646660,-1647.28,0.00027397,2]
[322191127,1712868646670,-549.47474544,0.00027397,2]
[322191128,1712868646679,-500.0,0.00027397,2]
[322191129,1712868646688,-500.0,0.00027397,2]
[322191130,1712868646697,-5041.71,0.00027397,2]
[322191131,1712868646706,-500.0,0.00027397,2]
[322191132,1712868646716,-3675.2,0.00027397,2]
[322191133,1712868646725,-718.53,0.00027397,2]
[322191134,1712868646736,-500.0,0.00027397,2]
[322191135,1712868646745,-500.0,0.00027397,2]
[322191136,1712868646757,-1981.96,0.00027397,2]
[322191137,1712868646766,-500.0,0.00027397,2]
[322191138,1712868646776,-1488.51,0.00027397,2]
[322191139,1712868646786,-500.0,0.00027397,2]
[322191140,1712868646795,-500.0,0.00027397,2]
[322191141,1712868646805,-500.0,0.00027397,2]
[322191142,1712868646814,-691.26,0.00027397,2]
[322191143,1712868646824,-500.0,0.00027397,2]
[322191144,1712868646834,-803.67,0.00027397,2]
[322191145,1712868646843,-2253.37,0.00027397,2]
[322191146,1712868646853,-500.0,0.00027397,2]
[322191147,1712868646862,-2853.81,0.00027397,2]
[322191148,1712868646871,-500.0,0.00027397,2]
[322191149,1712868646880,-500.0,0.00027397,2]
[322191150,1712868646890,-500.0,0.00027397,2]
[322191151,1712868646900,-3201.39,0.00027397,2]
[322191152,1712868646909,-500.0,0.00027397,2]
[322191153,1712868646918,-597.19080736,0.00027397,2]
[322191154,1712868646931,-500.0,0.00027397,2]
[322191155,1712868646941,-1929.13,0.00027397,2]
[322191156,1712868646950,-500.0,0.00027397,2]
[322191157,1712868646960,-521.37,0.00027397,2]
[322191158,1712868646969,-500.0,0.00027397,2]
[322191159,1712868646982,-500.0,0.00027397,2]
[322191160,1712868647003,-500.0,0.00027397,2]
[322191161,1712868647013,-500.0,0.00027397,2]
[322191162,1712868647024,-500.0,0.00027397,2]
[322191163,1712868647034,-3617.25,0.00027397,2]
[322191164,1712868647043,-20622.33,0.00027397,2]
[322191165,1712868647053,-500.0,0.00027397,2]
[322191166,1712868647064,-500.0,0.00027397,2]
[322191167,1712868647075,-500.0,0.00027397,2]
[322191168,1712868647085,-5321.78,0.00027397,2]
[322191169,1712868647096,-3185.82,0.00027397,2]
[322191170,1712868647105,-500.0,0.00027397,2]
[322191171,1712868647115,-500.0,0.00027397,2]
[322191172,1712868647125,-709.97,0.00027397,2]
[322191173,1712868647134,-3159.66,0.00027397,2]
[322191174,1712868647145,-500.0,0.00027397,2]
[322191175,1712868647155,-500.0,0.00027397,2]
[322191176,1712868647165,-597.73,0.00027397,2]
[322191177,1712868647174,-500.0,0.00027397,2]
[322191178,1712868647184,-500.0,0.00027397,2]
[322191179,1712868647194,-500.0,0.00027397,2]
[322191180,1712868647204,-2469.22556827,0.00027479,3]
[322191181,1712868647214,-207.0766861,0.00027503,2]
[322191182,1712868647223,-2168.42627104,0.00027513,2]
[322191183,1712868647233,-2963.47757061,0.00027513,2]
[322191184,1712868647243,-328.06115647,0.00027629,2]
[322191185,1712868647253,-500.0,0.0002767,2]
[322191186,1712868647262,-500.0,0.0002767,2]
[322191187,1712868647272,-154.04295662,0.00027671,2]
[322191188,1712868647282,-500.0,0.00027671,2]
[322191189,1712868647291,-500.0,0.00027671,2]
[322191190,1712868647301,-500.0,0.00027671,2]
[322191191,1712868647311,-500.0,0.00027671,2]
[322191192,1712868647322,-500.0,0.00027671,2]
[322191193,1712868647331,-678.61,0.00027671,2]
[322191194,1712868647341,-296.61243596,0.00027671,2]
[322191195,1712868647351,-500.0,0.00027671,2]
[322191196,1712868647361,-500.0,0.00027671,2]
[322191197,1712868647370,-910.51,0.00027671,2]
[322191198,1712868647380,-500.0,0.00027671,2]
[322191199,1712868647401,-500.0,0.00027671,2]
[322191200,1712868647417,-500.0,0.00027671,2]
[322191201,1712868647436,-500.0,0.00027671,2]
[322191202,1712868647450,-500.0,0.00027671,2]